fUSD/lending_fUSD_20251110
["ID","MTS","AMOUNT","RATE_DAILY","PERIOD"]
[393519131,1762753832170,-226.0,0.0003521,120]
[393519132,1762753832179,-38941.27082123,0.0003524,3]
[393519133,1762753832205,-8822.57890987,0.0003524,3]
[393519134,1762753832217,-9838.75785229,0.00035243,2]
[393519135,1762753832226,-11022.426861,0.00035248,3]
[393519136,1762753832236,-118371.7504839,0.0003525,2]
[393519137,1762753832246,-500.0,0.00035257,120]
[393519138,1762753832255,-3674.14228701,0.00035258,3]
[393519139,1762753832265,-7348.28457402,0.00035263,3]
[393519140,1762753832275,-191.16158764,0.00035268,2]
[393519141,1762753832285,-3686.76291258,0.00035268,9]
[393519142,1762753832295,-160.07070138,0.00035273,5]
[393519143,1762753832305,-563.55010431,0.00035273,5]
[393519144,1762753832315,-171.73742243,0.00035273,5]
[393519145,1762753832324,-500.20791126,0.00035273,5]
[393519146,1762753832334,-508.91513601,0.00035273,5]
[393519147,1762753832343,-500.0,0.00035273,5]
[393519148,1762753832353,-500.0,0.00035273,2]
[393519149,1762753832362,-434.06552997,0.00035273,5]
[393519150,1762753832372,-11022.426861,0.0003529,3]
[393519151,1762753832382,-499.999999,0.000353,5]
[393519152,1762753832392,-3674.14228701,0.00035333,3]
[393519153,1762753832401,-500.0,0.00035335,30]
[393519154,1762753832411,-151.0,0.0003534,2]
[393519155,1762753832420,-237.52062019,0.0003534,2]
[393519156,1762753832430,-3005.61437,0.00035343,30]
[393519157,1762753832439,-300.0,0.0003535,10]
[393519158,1762753832448,-11022.426861,0.00035351,3]
[393519159,1762753832457,-84505.2726012,0.00035351,3]
[393519160,1762753832467,-164114.700235,0.00035351,3]
[393519161,1762753832477,-390.96134406,0.00035351,2]
[393519162,1762753832487,-280.789717,0.00035352,31]
[393519163,1762753832497,-158.63951,0.00035352,31]
[393519164,1762753832507,-195.105008,0.00035352,31]
[393519165,1762753832516,-195.105008,0.00035352,31]
[393519166,1762753832527,-195.105008,0.00035352,31]
[393519167,1762753832538,-195.105008,0.00035352,31]
[393519168,1762753832548,-151.0,0.00035352,31]
[393519169,1762753832824,-195.105008,0.00035352,31]
[393519170,1762753832838,-151.0,0.00035352,31]
[393519171,1762753832848,-195.105008,0.00035352,31]
[393519172,1762753832857,-151.0,0.00035352,31]
[393519173,1762753832868,-195.105008,0.00035352,31]
[393519174,1762753832878,-195.105008,0.00035352,31]
[393519175,1762753832887,-152.151844,0.00035352,31]
[393519176,1762753832897,-151.0,0.00035352,31]
[393519177,1762753832907,-151.0,0.00035352,31]
[393519178,1762753832917,-151.0,0.00035352,31]
[393519179,1762753832926,-151.0,0.00035352,31]
[393519180,1762753832935,-152.922304,0.00035352,30]
[393519181,1762753832944,-151.0,0.00035352,31]
[393519182,1762753832955,-151.0,0.00035352,31]
[393519183,1762753832964,-151.0,0.00035352,31]
[393519184,1762753832974,-175.141471,0.00035352,31]
[393519185,1762753832985,-151.0,0.00035352,31]
[393519186,1762753832994,-262.51763,0.00035352,31]
[393519187,1762753833004,-158.588278,0.00035352,31]
[393519188,1762753833013,-151.0,0.00035352,31]
[393519189,1762753833023,-151.0,0.00035352,31]
[393519190,1762753833033,-151.0,0.00035352,31]
[393519191,1762753833043,-151.0,0.00035352,31]
[393519192,1762753833052,-177.331455,0.00035352,31]
[393519193,1762753833062,-177.331455,0.00035352,31]
[393519194,1762753833073,-177.331455,0.00035352,31]
[393519195,1762753833083,-177.331455,0.00035352,31]
[393519196,1762753833092,-177.331455,0.00035352,31]
[393519197,1762753833102,-177.331455,0.00035352,31]
[393519198,1762753833111,-210.171406,0.00035352,31]
[393519199,1762753833120,-177.331455,0.00035352,31]
[393519200,1762753833130,-177.331455,0.00035352,31]
[393519201,1762753833140,-151.0,0.00035352,31]
[393519202,1762753833149,-151.0,0.00035352,31]
[393519203,1762753833159,-151.0,0.00035352,31]
[393519204,1762753833169,-153.478762,0.00035352,31]
[393519205,1762753833178,-151.0,0.00035352,31]
[393519206,1762753833187,-151.0,0.00035352,31]
[393519207,1762753833197,-151.0,0.00035352,31]
[393519208,1762753833206,-151.0,0.00035352,31]
[393519209,1762753833216,-151.0,0.00035352,31]
[393519210,1762753833226,-152.646818,0.00035352,31]
[393519211,1762753833235,-151.0,0.00035352,31]
[393519212,1762753833244,-151.0,0.00035352,31]
[393519213,1762753833254,-151.0,0.00035352,31]
[393519214,1762753833264,-151.0,0.00035352,31]
[393519215,1762753833274,-151.0,0.00035352,31]
[393519216,1762753833284,-165.421454,0.00035352,31]
[393519217,1762753833294,-151.0,0.00035352,31]
[393519218,1762753833304,-151.0,0.00035352,31]
[393519219,1762753833313,-437.569438,0.00035352,31]
[393519220,1762753833323,-437.569438,0.00035352,31]
[393519221,1762753833332,-174.823466,0.00035352,31]
[393519222,1762753833341,-174.823466,0.00035352,31]
[393519223,1762753833351,-437.569438,0.00035352,31]
[393519224,1762753833360,-437.569438,0.00035352,31]
[393519225,1762753833370,-154.174134,0.00035352,31]
[393519226,1762753833380,-174.823466,0.00035352,31]
[393519227,1762753833389,-437.569438,0.00035352,31]
[393519228,1762753833399,-174.823466,0.00035352,31]
[393519229,1762753833409,-437.569438,0.00035352,31]
[393519230,1762753833419,-307.85671824,0.0003536,10]
[393519231,1762753833429,-500.0,0.00035361,120]
[393519232,1762753833439,-500.0,0.00035361,120]
[393519233,1762753833448,-483.45918935,0.00035361,120]
[393519234,1762753833458,-151.0,0.00035361,31]
[393519235,1762753833467,-151.0,0.00035361,31]
[393519236,1762753833477,-158.307529,0.00035361,31]
[393519237,1762753833486,-156.384516,0.00035361,31]
[393519238,1762753833495,-151.0,0.00035361,31]
[393519239,1762753833506,-151.0,0.00035361,31]
[393519240,1762753833515,-156.042327,0.00035361,31]
[393519241,1762753833525,-191.527587,0.00035361,31]
[393519242,1762753833535,-151.0,0.00035361,31]
[393519243,1762753833544,-157.210334,0.00035361,31]
[393519244,1762753833555,-155.932469,0.00035361,31]
[393519245,1762753833566,-151.0,0.00035361,31]
[393519246,1762753833578,-151.0,0.00035361,31]
[393519247,1762753833588,-151.0,0.00035361,31]
[393519248,1762753833598,-151.0,0.00035361,31]
[393519249,1762753833607,-151.0,0.00035361,31]
[393519250,1762753833616,-151.0,0.00035361,31]
[393519251,1762753833626,-163.084843,0.00035361,31]
[393519252,1762753833636,-151.0,0.00035361,31]
[393519253,1762753833645,-160.835945,0.00035361,31]
[393519254,1762753833655,-151.0,0.00035361,31]
[393519255,1762753833665,-151.0,0.00035361,31]
[393519256,1762753833675,-232.648983,0.00035361,31]
[393519257,1762753833686,-151.0,0.00035361,31]
[393519258,1762753833695,-232.648983,0.00035361,31]
[393519259,1762753833705,-232.648983,0.00035361,31]
[393519260,1762753833716,-232.648983,0.00035361,31]
[393519261,1762753833726,-151.0,0.00035361,31]
[393519262,1762753833736,-151.0,0.00035361,31]
[393519263,1762753833745,-151.0,0.00035361,31]
[393519264,1762753833755,-151.0,0.00035361,31]
[393519265,1762753833766,-151.0,0.00035361,31]
[393519266,1762753833776,-151.0,0.00035361,31]
[393519267,1762753833785,-296.622815,0.00035361,31]
[393519268,1762753833799,-160.742229,0.00035361,31]
[393519269,1762753833808,-188.815372,0.00035361,31]
[393519270,1762753833818,-151.0,0.00035361,31]
[393519271,1762753833829,-151.0,0.00035361,31]
[393519272,1762753833840,-151.0,0.00035361,31]
[393519273,1762753833850,-151.0,0.00035361,31]
[393519274,1762753833860,-151.0,0.00035361,31]
[393519275,1762753833873,-154.231664,0.00035361,31]
[393519276,1762753833883,-163.952084,0.00035361,31]
[393519277,1762753833893,-155.419633,0.00035361,31]
[393519278,1762753833903,-202.765908,0.00035361,31]
[393519279,1762753833914,-151.0,0.00035361,31]
[393519280,1762753833923,-202.765908,0.00035361,31]
[393519281,1762753833933,-202.765908,0.00035361,31]
[393519282,1762753833942,-202.765908,0.00035361,31]
[393519283,1762753833952,-151.0,0.00035361,31]
[393519284,1762753833962,-153.104347,0.00035361,31]
[393519285,1762753833971,-151.0,0.00035361,31]
[393519286,1762753833981,-151.0,0.00035361,31]
[393519287,1762753833990,-151.0,0.00035361,31]
[393519288,1762753834000,-151.0,0.00035361,31]
[393519289,1762753834009,-152.906243,0.00035361,31]
[393519290,1762753834018,-151.0,0.00035361,31]
[393519291,1762753834028,-152.107016,0.00035361,31]
[393519292,1762753834037,-151.0,0.00035361,31]
[393519293,1762753834047,-151.0,0.00035361,31]
[393519294,1762753834057,-151.0,0.00035361,31]
[393519295,1762753834066,-151.0,0.00035361,10]
[393519296,1762753834080,-151.0,0.00035361,15]
[393519297,1762753834090,-151.0,0.00035361,31]
[393519298,1762753834100,-151.0,0.00035361,15]
[393519299,1762753834110,-151.0,0.00035361,31]
[393519300,1762753834120,-163.163534,0.00035361,31]
[393519301,1762753834129,-200.795348,0.00035361,31]
[393519302,1762753834139,-184.088884,0.00035361,30]
[393519303,1762753834149,-184.088884,0.00035361,30]
[393519304,1762753834158,-829.845205,0.00035361,31]
[393519305,1762753834169,-184.088884,0.00035361,30]
[393519306,1762753834179,-829.845205,0.00035361,31]
[393519307,1762753834189,-184.088884,0.00035361,30]
[393519308,1762753834199,-829.845205,0.00035361,31]
[393519309,1762753834209,-829.845205,0.00035361,31]
[393519310,1762753834219,-151.0,0.00035361,31]
[393519311,1762753834228,-153.04157,0.00035361,31]
[393519312,1762753834238,-151.0,0.00035361,31]
[393519313,1762753834248,-151.0,0.00035361,31]
[393519314,1762753834257,-280.963574,0.00035361,31]
[393519315,1762753834267,-151.0,0.00035361,31]
[393519316,1762753834276,-151.0,0.00035361,31]
[393519317,1762753834286,-195.105008,0.00035361,31]
[393519318,1762753834295,-195.105008,0.00035361,31]
[393519319,1762753834304,-195.105008,0.00035361,31]
[393519320,1762753834314,-195.105008,0.00035361,31]
[393519321,1762753834325,-151.0,0.00035361,31]
[393519322,1762753834334,-211.980395,0.00035361,31]
[393519323,1762753834344,-166.549491,0.00035361,31]
[393519324,1762753834354,-177.331455,0.00035361,31]
[393519325,1762753834363,-177.331455,0.00035361,31]
[393519326,1762753834373,-177.331455,0.00035361,31]
[393519327,1762753834382,-177.331455,0.00035361,31]
[393519328,1762753834392,-151.0,0.00035361,31]
[393519329,1762753834401,-207.812327,0.00035361,31]
[393519330,1762753834411,-437.569438,0.00035361,31]
[393519331,1762753834420,-174.823466,0.00035361,31]
[393519332,1762753834430,-437.569438,0.00035361,31]
[393519333,1762753834439,-174.823466,0.00035361,31]
[393519334,1762753834448,-437.569438,0.00035361,31]
[393519335,1762753834458,-549331.8946863,0.00035362,2]
[393519336,1762753834679,-1501.88313328,0.00035362,2]
[393519337,1762753834691,-458.44747329,0.00035362,2]
[393519338,1762753834702,-25062.39091333,0.00035362,2]
[393519339,1762753837260,-395.02432786,0.00032857,2]
[393519340,1762753837480,-392.85782781,0.00032857,2]
[393519341,1762753837490,-107.14217219,0.000353,30]
[393519400,1762753842494,-16.89457232,0.000353,30]
[393519401,1762753842605,-384.59347949,0.000353,30]
[393519402,1762753842615,-115.40652051,0.00035329,2]
[393519403,1762753842776,-1061.86747976,0.00035329,2]
[393519404,1762753842834,-2537.07513987,0.00035329,2]
[393519406,1762753846032,-5014.99996393,0.00035329,2]
[393519407,1762753846053,-1109.40874822,0.00035329,2]
[393519408,1762753846063,-174.823466,0.00035352,31]
[393519409,1762753846072,-174.823466,0.00035352,31]
[393519410,1762753846083,-437.569438,0.00035352,31]
[393519412,1762753846092,-151.0,0.00035352,31]
[393519414,1762753846101,-151.0,0.00035352,31]
[393519415,1762753846111,-437.569438,0.00035352,31]
[393519417,1762753846121,-174.823466,0.00035352,31]
[393519418,1762753846130,-174.823466,0.00035352,31]
[393519419,1762753846139,-151.0,0.00035352,31]
[393519421,1762753846149,-151.0,0.00035352,31]
[393519422,1762753846159,-153.596215,0.00035352,31]
[393519423,1762753846168,-160.683074,0.00035352,31]
[393519424,1762753846402,-151.0,0.00035352,31]
[393519425,1762753846412,-152.600022,0.00035352,31]
[393519426,1762753846421,-154.327168,0.00035352,31]
[393519427,1762753846431,-154.327168,0.00035352,31]
[393519428,1762753846440,-154.327168,0.00035352,31]
[393519429,1762753846449,-162.212726,0.00035352,31]
[393519430,1762753846458,-154.327168,0.00035352,31]
[393519431,1762753846467,-162.212726,0.00035352,31]
[393519432,1762753846476,-154.327168,0.00035352,31]
[393519433,1762753846485,-154.327168,0.00035352,31]
[393519434,1762753846495,-162.212726,0.00035352,31]
[393519435,1762753846504,-162.212726,0.00035352,31]
[393519436,1762753846518,-154.327168,0.00035352,31]
[393519437,1762753846528,-174.823466,0.00035361,31]
[393519438,1762753846538,-151.0,0.00035361,31]
[393519439,1762753846547,-437.569438,0.00035361,31]
[393519440,1762753846557,-174.823466,0.00035361,31]
[393519441,1762753846566,-151.0,0.00035361,31]
[393519442,1762753846575,-154.327168,0.00035361,31]
[393519443,1762753846586,-154.327168,0.00035361,31]
[393519444,1762753846596,-162.212726,0.00035361,31]
[393519445,1762753846606,-154.327168,0.00035361,31]
[393519446,1762753846616,-162.212726,0.00035361,31]
[393519447,1762753846625,-21220.22198964,0.00035362,2]
[393519502,1762754434995,-253.92,0.00033333,7]
[393519576,1762755031600,-312.0,0.00032935,7]
[393519577,1762755031610,-312.0,0.00033308,2]
[393519578,1762755031621,-56.08,0.00033333,7]
[393519579,1762755031630,-150.0,0.00033394,2]
[393519580,1762755031640,-143.339999,0.00033394,2]
[393519581,1762755031656,-6.660001,0.00033394,2]
[393519582,1762755031667,-311.0,0.00033614,2]
[393519583,1762755031677,-320.64,0.00033832,2]
[393519584,1762755031687,-200.0,0.0003387,2]
[393519585,1762755031696,-3323.31,0.0003392,2]
[393519586,1762755031706,-233.76,0.00033949,120]
[393519587,1762755031716,-1000.0,0.00033971,2]
[393519588,1762755031725,-482.65,0.00034007,2]
[393519589,1762755031735,-300.0,0.00034109,3]
[393519590,1762755031744,-1200.0,0.00034109,3]
[393519591,1762755031753,-5000.0,0.0003411,2]
[393519592,1762755031763,-2751.0,0.0003411,120]
[393519593,1762755031772,-218.6,0.00034195,2]
[393519594,1762755031782,-311.0,0.00034389,7]
[393519595,1762755031791,-500.0,0.00034474,2]
[393519596,1762755031801,-478.32096809,0.00034525,2]
[393519597,1762755031810,-356.19,0.00034578,2]
[393519598,1762755031820,-309.0,0.00034585,7]
[393519600,1762755031830,-458.0,0.000346,120]
[393519602,1762755031839,-309.0,0.00034604,2]
[393519604,1762755031848,-309.0,0.00034615,120]
[393519606,1762755031858,-309.0,0.00034639,2]
[393519607,1762755031867,-367.6740738,0.00034652,2]
[393519608,1762755031879,-182.3259262,0.00034652,2]
[393519610,1762755031889,-309.0,0.00034652,2]
[393519612,1762755031899,-309.0,0.0003466,2]
[393519613,1762755031910,-500.0,0.00034787,30]
[393519614,1762755031920,-176.12,0.00034886,2]
[393519615,1762755031935,-311.0,0.00034899,2]
[393519616,1762755031945,-309.0,0.0003502,2]
[393519617,1762755031955,-1996.00943431,0.00035052,5]
[393519618,1762755031965,-500.0,0.00035061,30]
[393519619,1762755031976,-1996.00943431,0.00035061,5]
[393519620,1762755031985,-893.73840764,0.00035099,2]
[393519621,1762755031995,-221.8861932,0.00035109,2]
[393519622,1762755032004,-1655.2136,0.00035152,2]
[393519623,1762755032014,-319.4449,0.00035152,2]
[393519624,1762755032024,-1591.704,0.0003516,41]
[393519625,1762755032034,-500.0,0.0003516,7]
[393519626,1762755032044,-500.0,0.0003516,7]
[393519627,1762755032055,-646.71428243,0.0003516,7]
[393519628,1762755032065,-13279.46959538,0.0003516,2]
[393519629,1762755032075,-152.78067377,0.00035161,15]
[393519630,1762755032084,-7487.14643268,0.00035161,2]
[393519631,1762755032097,-1000.0,0.00035161,2]
[393519632,1762755032107,-24869.7653,0.00035161,2]
[393519633,1762755032118,-1000.0,0.00035161,2]
[393519634,1762755032128,-2500.0,0.00035161,2]
[393519635,1762755032138,-500.0,0.00035169,2]
[393519636,1762755032147,-309.0,0.00035196,120]
[393519637,1762755032159,-13279.46959532,0.00035244,2]
[393519638,1762755032172,-7487.14643262,0.00035245,2]
[393519639,1762755032182,-309.0,0.0003525,2]
[393519640,1762755032192,-264.2891282,0.0003525,7]
[393519641,1762755032203,-228.16407063,0.0003525,7]
[393519642,1762755032213,-500.0,0.0003525,7]
[393519643,1762755032223,-500.0,0.0003525,7]
[393519644,1762755032233,-176.240836,0.0003525,7]
[393519645,1762755032245,-2004.95203468,0.0003525,10]
[393519646,1762755032255,-102926.179376,0.00035251,3]
[393519647,1762755032265,-300.0,0.0003526,10]
[393519648,1762755032274,-300.0,0.0003526,10]
[393519649,1762755032284,-666.0,0.0003526,10]
[393519650,1762755032294,-666.0,0.0003526,10]
[393519651,1762755032304,-500.0,0.00035261,120]
[393519652,1762755032314,-500.0,0.00035261,120]
[393519653,1762755032324,-500.0,0.00035261,120]
[393519654,1762755032335,-500.0,0.00035261,120]
[393519655,1762755032344,-500.0,0.00035261,7]
[393519656,1762755032354,-595.68,0.00035261,7]
[393519657,1762755032363,-500.0,0.00035261,30]
[393519658,1762755032374,-500.0,0.00035261,120]
[393519659,1762755032384,-500.0,0.00035261,120]
[393519660,1762755032394,-538.29,0.00035261,30]
[393519661,1762755032404,-55081.16551846,0.00035261,2]
[393519662,1762755032416,-18290.41503114,0.00035261,2]
[393519664,1762755037718,-12398.76232608,0.00035261,2]
[393519670,1762755039726,-5498.99783316,0.00035261,2]
[393519682,1762755042735,-314.85000006,0.00035261,2]
[393519683,1762755042847,-368.14700699,0.00035261,2]
[393519684,1762755042861,-11716.4336,0.00035261,2]
[393519692,1762755045652,-3045.53363114,0.00035261,2]
[393519693,1762755045678,-846.92497999,0.00035261,2]
[393519694,1762755046040,-1127.3,0.00035261,2]
[393519737,1762755083975,1875.51544291,0.000314,5]
[393519739,1762755098062,167.05,0.00013699,2]
[393519740,1762755098401,167.05,0.00020187,2]
[393519742,1762755187438,-167.05,0.00026676,2]
[393519743,1762755187469,-361.66,0.00029344,2]
[393519744,1762755188512,195.0,0.00029344,120]
[393519745,1762755666156,-3632.0,0.000298,5]
[393519746,1762755908482,10000.01,0.00018,2]
[393519747,1762755908508,10000.01,0.00018,2]
[393519748,1762755908534,10000.01,0.00018,2]
[393519749,1762755908564,10000.01,0.00018,2]
[393519750,1762755908589,10000.01,0.00018,2]
[393519751,1762755908614,10000.01,0.00018,2]
[393519752,1762755908641,10000.01,0.00018,2]
[393519753,1762755908665,10000.01,0.00018,2]
[393519754,1762755908690,10000.01,0.00018,2]
[393519755,1762755908714,10000.01,0.00018,2]
[393519756,1762755908744,10000.01,0.00018,2]
[393519757,1762755908770,10000.01,0.00018,2]
[393519758,1762755908795,10000.01,0.00018,2]
[393519759,1762755908819,10000.01,0.00018,2]
[393519760,1762755908848,150.0,0.00018,2]
[393519761,1762755908875,161000.0,0.00018,2]
[393519762,1762755908905,49503.35041606,0.00018,2]
[393519764,1762755953225,533.01736024,0.0001501,2]
[393519765,1762755976428,246707.52340275,0.000209,30]
[393519766,1762755986833,169.07,0.00017052,2]
[393519767,1762755987060,169.07,0.00017914,2]
[393519768,1762755988588,-169.07,0.00018777,2]
[393519769,1762755988614,-31.00840815,0.00019639,2]
[393519770,1762756013449,5000.0,0.000162,5]
[393519771,1762756070412,5000.01,0.00015,2]
[393519772,1762756070436,10000.01,0.00015,2]
[393519773,1762756070468,10000.01,0.00015,2]
[393519774,1762756070495,10000.01,0.00015,2]
[393519775,1762756070518,10000.01,0.00015,2]
[393519776,1762756070542,10000.01,0.00015,2]
[393519777,1762756070564,10000.01,0.00015,2]
[393519778,1762756070586,10000.01,0.00015,2]
[393519779,1762756070608,10000.01,0.00015,2]
[393519780,1762756070630,10000.01,0.00015,2]
[393519781,1762756070652,10000.01,0.00015,2]
[393519782,1762756070676,27623.63340273,0.00015,2]
[393519786,1762756115226,10000.01,0.00015,3]
[393519787,1762756115257,10000.01,0.00015,3]
[393519788,1762756115285,10000.01,0.00015,3]
[393519789,1762756115313,10000.01,0.00015,3]
[393519790,1762756115338,10000.01,0.00015,3]
[393519791,1762756115366,10000.01,0.00015,3]
[393519792,1762756115395,10000.01,0.00015,3]
[393519793,1762756115421,10000.01,0.00015,3]
[393519794,1762756115446,16484.72576834,0.00015,3]
[393519795,1762756116823,-138.06159185,0.00019639,2]
[393519796,1762756116847,-260.33098989,0.0002,7]
[393519797,1762756117333,-458.57843434,0.0002,7]
[393519798,1762756117368,-365.02109656,0.0002,7]
[393519799,1762756160105,-154.29355216,0.000205,2]
[393519800,1762756160127,-169.07,0.00020501,2]
[393519801,1762756160148,-169.07,0.00021363,2]
[393519821,1762756231840,-225.64709192,0.00022226,2]
[393519822,1762756231850,-169.07,0.00022226,2]
[393519823,1762756231860,-46.97205716,0.00023088,2]
[393519824,1762756231872,-122.09794284,0.00023088,2]
[393519825,1762756231882,-169.07,0.0002395,2]
[393519826,1762756231892,-169.07,0.00024813,2]
[393519827,1762756231902,-169.07,0.00025675,2]
[393519828,1762756231912,-243.76577845,0.00025754,2]
[393519829,1762756231922,-109.7329358,0.00026537,2]
[393519830,1762756231934,-59.3370642,0.00026537,2]
[393519831,1762756231944,-169.07,0.00027399,2]
[393519832,1762756231955,-174.43,0.00027849,2]
[393519833,1762756231965,-169.07,0.00028262,2]
[393519834,1762756231975,-200.0,0.00029109,2]
[393519835,1762756231984,-169.07,0.00029124,2]
[393519836,1762756231994,-169.07,0.00029986,2]
[393519837,1762756232003,-113.24426266,0.0003,3]
[393519838,1762756232020,-47.35573734,0.0003,3]
[393519839,1762756232029,-169.07,0.00030848,2]
[393519841,1762756232038,-160.07926267,0.00031095,2]
[393519844,1762756232050,-28.93073733,0.00031095,2]
[393519846,1762756232059,-1315.6,0.00031209,2]
[393519848,1762756232069,-169.07,0.00031711,2]
[393519849,1762756232079,-3058.7,0.00032171,2]
[393519850,1762756232088,-166.68,0.00032216,30]
[393519851,1762756232099,-1200.0,0.00032572,3]
[393519852,1762756232109,-169.07,0.00032573,2]
[393519853,1762756232119,-500.0,0.00032835,2]
[393519854,1762756232129,-920.0,0.00033165,3]
[393519855,1762756232139,-300.0,0.00033165,3]
[393519856,1762756232148,-167.05,0.00033165,2]
[393519857,1762756232157,-169.07,0.00033435,2]
[393519858,1762756232167,-610.0,0.00033496,2]
[393519859,1762756232176,-478.32096809,0.00033617,2]
[393519860,1762756232187,-200.0,0.00033854,2]
[393519861,1762756232196,-1495.12,0.00033873,2]
[393519862,1762756232206,-1000.0,0.00033989,2]
[393519864,1762756232216,-150.0,0.00034033,2]
[393519866,1762756232226,-9566.19,0.00034071,2]
[393519867,1762756232235,-999.0,0.0003409,3]
[393519868,1762756232245,-1285.54,0.00034147,30]
[393519869,1762756232255,-5844.94,0.00034283,2]
[393519870,1762756232264,-250.0,0.00034327,2]
[393519871,1762756232273,-500.0,0.00034787,30]
[393519872,1762756232283,-523.63656899,0.00034804,7]
[393519873,1762756232292,-500.0,0.00034804,7]
[393519874,1762756232302,-500.0,0.00034804,7]
[393519875,1762756232312,-500.0,0.00034804,7]
[393519876,1762756232322,-500.0,0.00034804,7]
[393519877,1762756232332,-500.0,0.00034804,7]
[393519878,1762756232342,-373.34260501,0.00034804,7]
[393519879,1762756232351,-500.0,0.00034804,7]
[393519880,1762756232361,-500.0,0.00034804,7]
[393519881,1762756232371,-500.0,0.00034804,7]
[393519882,1762756232381,-500.0,0.00034804,7]
[393519883,1762756232391,-500.0,0.00034804,7]
[393519884,1762756232401,-500.0,0.00034804,7]
[393519885,1762756232410,-500.0,0.00034804,7]
[393519886,1762756232420,-500.0,0.00034804,7]
[393519887,1762756232430,-595.65464437,0.00034804,7]
[393519888,1762756232440,-500.0,0.00034804,7]
[393519889,1762756232451,-500.0,0.00034804,7]
[393519890,1762756232460,-500.0,0.00034804,7]
[393519891,1762756232470,-500.0,0.00034804,7]
[393519892,1762756232479,-500.0,0.00034804,7]
[393519893,1762756232488,-500.0,0.00034804,7]
[393519894,1762756232499,-500.0,0.00034804,7]
[393519895,1762756232512,-500.0,0.00034804,7]
[393519896,1762756232522,-500.0,0.00034804,7]
[393519897,1762756232532,-500.0,0.00034804,7]
[393519898,1762756232541,-500.0,0.00034804,7]
[393519899,1762756232552,-500.0,0.00034804,7]
[393519900,1762756232561,-500.0,0.00034804,7]
[393519901,1762756232571,-500.0,0.00034804,7]
[393519902,1762756232582,-300.0,0.00034804,7]
[393519903,1762756232591,-500.0,0.00034804,7]
[393519904,1762756232601,-177.04,0.00034805,2]
[393519905,1762756232611,-340.55,0.00034805,2]
[393519906,1762756232620,-177.04,0.00034805,2]
[393519907,1762756232630,-177.04,0.00034805,2]
[393519908,1762756232640,-177.04,0.00034805,2]
[393519909,1762756232649,-177.04,0.00034805,2]
[393519910,1762756232659,-671.0,0.0003482,2]
[393519911,1762756232669,-150.0,0.00034899,7]
[393519912,1762756232679,-150.0,0.00034899,7]
[393519913,1762756232688,-150.0,0.00034899,7]
[393519914,1762756232698,-152.56493624,0.00034899,7]
[393519915,1762756232708,-150.0,0.00034899,2]
[393519916,1762756232716,-150.0,0.00034899,7]
[393519917,1762756232726,-150.0,0.00034899,7]
[393519918,1762756232735,-150.0,0.00034899,7]
[393519919,1762756232749,-150.0,0.00034899,7]
[393519920,1762756232759,-218.36330593,0.00034899,7]
[393519921,1762756232768,-500.0,0.00034899,7]
[393519922,1762756232778,-514.52071223,0.00034899,7]
[393519923,1762756232787,-150.0,0.00034899,2]
[393519924,1762756232797,-150.0,0.00034899,7]